bitfinex/quotes_ETHUSD_20210701
["timestamp","ask_amount","ask_price","bid_price","bid_amount"]
[1625130312746,3.37213,2128.5,2128.2,5.01]
[1625130313226,3.37213,2128.5,2128.3,7.04385]
[1625130314429,3.37213,2128.5,2128.4,5.01]
[1625130314777,2.29033,2129.4,2128.5,28.35]
[1625130314786,0.01,2129.6,2129.2,3.67614933]
[1625130314859,0.01,2129.6,2129.5,20.0]
[1625130314951,0.01,2129.6,2129.3,5.53071625]
[1625130315052,0.01,2129.6,2129.4,5.01]
[1625130315449,0.01,2129.6,2129.5,5.24744906]
[1625130315554,0.01,2129.6,2129.5,28.54744906]
[1625130315655,0.01,2129.6,2129.4,7.79962075]
[1625130315755,3.96,2130.7,2129.5,17.64]
[1625130315756,3.95067205,2130.7,2129.5,17.64]
[1625130315859,5.0,2130.5,2129.7,5.01]
[1625130315955,5.0,2130.5,2129.7,8.117]
[1625130316051,5.0,2130.5,2129.7,3.107]
[1625130316152,5.0,2130.5,2129.8,5.28063005]
[1625130316257,10.2121,2130.9,2129.8,5.28063005]
[1625130316356,10.2121,2130.9,2130.0,5.01]
[1625130316451,0.01117901,2131.1,2130.0,5.01]
[1625130316553,0.01117901,2131.1,2130.0,0.16131126]
[1625130316651,0.01117901,2131.1,2129.9,5.01]
[1625130316751,0.01117901,2131.1,2129.8,5.01]
[1625130316853,0.01117901,2131.1,2130.1,7.03779]
[1625130317020,0.14,2131.0,2129.8,5.01]
[1625130317114,7.03154556,2131.1,2129.8,5.01]
[1625130317214,6.86117901,2131.1,2129.7,7.207]
[1625130317319,12.93655419,2131.1,2129.9,5.01]
[1625130317715,7.1187904,2131.0,2129.9,5.01]
[1625130317815,5.75183517,2130.9,2129.9,5.01]
[1625130318319,7.03919,2130.5,2129.7,7.207]
[1625130318416,5.5543366,2130.4,2129.7,7.207]
[1625130318514,10.55901,2130.5,2129.7,3.107]
[1625130318617,3.51982,2130.5,2129.7,3.107]
[1625130319227,3.5194504,2131.0,2129.9,5.01]
[1625130319332,3.5194504,2131.0,2130.2,5.01]
[1625130319433,3.5194504,2131.0,2130.2,8.5269]
[1625130319434,7.0379,2130.9,2130.2,8.5269]
[1625130319533,16.24514901,2131.1,2130.2,13.86024766]
[1625130319629,6.86117901,2131.1,2130.3,5.01]
[1625130319729,10.38022901,2131.1,2130.3,5.01]
[1625130319828,10.38022901,2131.1,2130.4,5.01]
[1625130319924,3.53022901,2131.1,2130.2,4.5716]
[1625130320026,3.53022901,2131.1,2130.2,3.5169]
[1625130320130,0.06,2131.0,2130.2,3.5169]
[1625130320329,3.53022901,2131.1,2130.2,3.5169]
[1625130320424,3.53022901,2131.1,2129.6,6.12111052]
[1625130320626,7.03874,2130.5,2129.6,6.12111052]
[1625130320731,9.38503,2130.8,2129.6,6.12111052]
[1625130320829,9.38503,2130.8,2129.7,0.06]
[1625130320927,9.38503,2130.8,2129.7,3.1426]
[1625130321027,9.33503,2130.8,2129.7,3.1426]
[1625130321228,9.33503,2130.8,2129.7,3.0826]
[1625130321328,9.33503,2130.8,2129.8,5.28649577]
[1625130321483,9.33503,2130.8,2129.7,3.0826]
[1625130321583,9.33503,2130.8,2129.9,5.01]
[1625130321784,7.0383,2130.5,2129.9,5.01]
[1625130321882,7.0383,2130.5,2130.0,5.01]
[1625130322186,3.51931,2130.7,2130.0,5.01]
[1625130322782,3.51931,2130.7,2129.8,5.26390733]
[1625130322882,3.51931,2130.7,2130.0,5.01]
[1625130323182,10.55695,2130.7,2130.0,5.01]
[1625130323386,3.51931,2130.7,2130.1,0.00837665]
[1625130323728,0.0097839,2130.6,2130.1,0.00837665]
[1625130324020,3.4531939,2130.7,2130.1,0.00837665]
[1625130325027,6.93891,2130.5,2130.3,0.0062909]
[1625130325528,3.4031939,2130.7,2130.3,0.0062909]
[1625130325627,9.33503,2130.8,2130.3,0.0062909]
[1625130325725,9.33503,2130.8,2130.3,3.6880909]
[1625130326077,0.06,2130.7,2130.3,3.6880909]
[1625130326275,9.33503,2130.8,2130.3,3.6880909]
[1625130326779,7.03811,2130.7,2130.3,3.6880909]
[1625130327083,0.00972244,2130.5,2130.3,3.6880909]
[1625130327880,7.04861244,2130.5,2130.3,3.6880909]
[1625130330077,28.35,2130.4,2129.8,0.00745309]
[1625130330175,7.0401,2130.2,2129.8,0.00745309]
[1625130330274,7.05586997,2130.2,2129.8,0.00745309]
[1625130330373,0.01576997,2130.2,2129.8,0.00745309]
[1625130330506,37.7368,2130.4,2129.8,0.00745309]
[1625130330798,9.3868,2130.4,2129.8,0.00745309]
[1625130330906,12.90713,2130.4,2129.8,0.00745309]
[1625130331000,0.00972244,2130.5,2129.8,4.33125309]
[1625130331100,0.00972244,2130.5,2129.9,5.34504316]
[1625130331205,0.00972244,2130.5,2129.9,0.94529815]
[1625130331400,0.00972244,2130.5,2130.0,5.01]
[1625130331600,0.00972244,2130.5,2130.1,5.01]
[1625130332202,0.00972244,2130.5,2129.9,0.94529815]
[1625130332406,11.03965154,2131.2,2130.0,14.55]
[1625130332507,11.03965154,2131.2,2129.8,5.45509803]
[1625130332508,0.2,2131.0,2129.8,5.45509803]
[1625130332606,0.2,2131.0,2130.0,5.32380659]
[1625130332607,7.03921,2130.6,2130.0,5.32380659]
[1625130332761,7.03921,2130.6,2129.8,0.00745309]
[1625130332762,4.97719235,2130.5,2129.8,0.00745309]
[1625130332959,0.14,2130.4,2129.8,0.00745309]
[1625130333355,0.14,2130.4,2130.3,0.0062909]
[1625130334159,21.89,2130.4,2130.3,0.0062909]
[1625130334760,21.89,2130.4,2130.3,9e-07]
[1625130334862,30.04,2130.4,2130.3,9e-07]
[1625130335119,37.04,2130.4,2130.3,9e-07]
[1625130335219,45.04,2130.4,2130.3,9e-07]
[1625130335322,3.52049,2130.3,2129.8,0.00745309]
[1625130335423,12.0429153,2130.1,2129.8,0.00745309]
[1625130335519,21.17853455,2130.1,2129.8,0.00745309]
[1625130335721,0.2,2130.0,2129.8,0.00745309]
[1625130335825,0.2,2130.0,2129.7,0.00782751]
[1625130335922,0.08,2129.9,2129.7,0.00782751]
[1625130336022,5.0757,2129.9,2129.7,0.00782751]
[1625130336221,12.06872,2129.9,2129.7,0.00782751]
[1625130336923,12.03872,2129.9,2129.7,0.00782751]
[1625130337976,11.98872,2129.9,2129.7,0.0158517]
[1625130338375,11.98872,2129.9,2129.7,0.02277263]
[1625130338584,3.52138,2129.6,2129.2,0.01042424]
[1625130339511,7.04284,2129.4,2129.2,0.01042424]
[1625130341858,3.52138,2129.6,2129.2,0.01042424]
[1625130344508,0.00632499,2129.4,2129.2,0.01042424]
[1625130347295,0.00632493,2129.3,2129.2,0.01042424]
[1625130350306,0.00632493,2129.3,2128.9,5.36428888]
[1625130350407,7.04217,2129.6,2128.9,5.36428888]
[1625130350508,7.04217,2129.6,2129.0,5.01]
[1625130350709,7.04217,2129.6,2129.1,5.30225394]
[1625130350949,7.04217,2129.6,2129.0,5.01]
[1625130351054,7.04217,2129.6,2128.9,5.28650964]
[1625130351552,0.00630573,2129.3,2128.8,6.0]
[1625130352450,0.00630573,2129.3,2129.0,5.01]
[1625130352753,0.00630573,2129.3,2129.1,5.01]
[1625130353107,0.00630573,2129.3,2129.0,5.01]
[1625130353308,0.00630573,2129.3,2128.8,6.0]
[1625130353610,0.00630573,2129.3,2128.8,0.0001]
[1625130353611,5.63240573,2129.3,2128.8,0.0001]
[1625130353711,28.35,2129.2,2128.1,3.14823876]
[1625130353814,0.2,2129.1,2128.0,10.737]
[1625130353915,0.23012598,2129.1,2128.0,10.737]
[1625130354008,0.02529777,2128.7,2128.0,10.737]
[1625130354110,10.68258777,2128.7,2127.5,17.90882]
[1625130354209,0.08,2128.6,2127.6,5.14636151]
[1625130354312,0.08,2128.6,2127.4,5.17105864]
[1625130354411,3.3,2128.4,2127.4,5.17105864]
[1625130354508,3.31520759,2128.4,2127.4,5.17105864]
[1625130355111,3.3,2128.4,2127.6,7.04488]
[1625130355212,0.02153131,2128.7,2127.7,5.48457085]
[1625130355386,0.00724876,2128.7,2127.8,0.06]
[1625130355472,0.00724876,2128.7,2127.7,0.00820809]
[1625130355571,0.00724876,2128.7,2127.9,20.0]
[1625130355676,0.00724876,2128.7,2128.0,5.26023401]
[1625130355775,0.00724876,2128.7,2128.0,6.38729942]
[1625130356274,0.00724876,2128.7,2128.2,5.01]
[1625130357279,0.00724876,2128.7,2128.2,10.2659643]
[1625130357477,0.00724876,2128.7,2128.2,5.01]
[1625130357606,0.00724876,2128.7,2128.1,7.04347]
[1625130357906,0.00724876,2128.7,2128.0,0.94322864]
[1625130358293,7.05212876,2128.7,2127.7,5.25683026]
[1625130358484,0.02164596,2128.7,2127.7,5.25683026]
[1625130358586,0.06,2128.6,2127.7,5.25683026]
[1625130358884,0.06,2128.6,2127.7,0.00820809]
[1625130358982,4.6957,2128.6,2127.7,0.00820809]
[1625130359181,0.08,2128.5,2127.7,0.00820809]
[1625130359292,7.04648,2128.2,2127.7,0.00820809]
[1625130360326,5.58001169,2128.1,2127.7,0.00820809]
[1625130360422,7.04777,2127.9,2127.7,0.00820809]
[1625130361227,10.14097,2127.9,2127.7,0.00820809]
[1625130361524,10.18097,2127.9,2127.7,0.00820809]
[1625130361824,15.67283078,2127.9,2127.7,0.00820809]
[1625130362025,33.92741011,2127.8,2127.7,0.00820809]
[1625130362133,5.67741011,2127.8,2127.7,0.00820809]
[1625130362233,0.1,2127.8,2127.7,0.00820809]
[1625130362332,0.25,2127.8,2127.7,0.00820809]
[1625130362431,0.1,2127.8,2127.7,0.00820809]
[1625130362835,9.55,2127.8,2127.7,0.00820809]
[1625130363534,15.011627,2127.8,2127.7,0.00820809]
[1625130363687,15.161627,2127.8,2127.7,0.00820809]
[1625130363783,28.861627,2127.8,2127.7,0.00820809]
[1625130364373,23.4,2127.8,2127.7,0.00820809]
[1625130364729,18.0,2127.8,2127.7,0.00820809]
[1625130365131,9.7,2127.8,2127.7,0.00820809]
[1625130365330,0.25,2127.8,2127.7,0.00820809]
[1625130365629,7.04777,2127.9,2127.7,0.00820809]
[1625130365732,13.7,2127.8,2127.7,0.00820809]
[1625130365932,13.76,2127.8,2127.7,0.00820809]
[1625130366747,22.26,2127.8,2127.7,0.01622057]
[1625130366849,22.26,2127.8,2127.7,0.00821057]
[1625130367553,22.26,2127.8,2127.7,0.0142254]
[1625130367650,22.26,2127.8,2127.7,0.02625506]
[1625130368252,27.79164727,2127.8,2127.7,0.02625506]
[1625130368353,27.79164727,2127.8,2126.7,0.01037456]
[1625130368354,34.04164727,2127.8,2126.7,0.01037456]
[1625130368458,9.74937293,2127.6,2126.7,0.01037456]
[1625130368556,9.79556877,2127.6,2126.7,0.01037456]
[1625130368657,0.15,2127.5,2126.7,0.01037456]
[1625130368756,5.01,2127.4,2126.7,0.01037456]
[1625130368880,5.85184533,2127.3,2126.7,0.01037456]
[1625130368981,6.02019777,2127.3,2126.7,0.01037456]
[1625130369383,0.15,2127.3,2126.7,0.01037456]
[1625130370181,7.05127,2127.0,2126.7,0.01037456]
[1625130370282,10.49307,2127.0,2126.7,0.01037456]
[1625130370682,6.31924254,2127.0,2126.7,0.01037456]
[1625130372844,3.4418,2127.0,2126.7,0.01037456]
[1625130373567,10.49307,2127.0,2126.7,0.01037456]
[1625130374766,10.49307,2127.0,2126.7,0.95549635]
[1625130374871,3.4418,2127.0,2126.7,0.95549635]
[1625130374968,9.5499,2127.4,2126.7,0.95549635]
[1625130375069,0.00878575,2127.5,2126.7,0.95549635]
[1625130376017,0.00878575,2127.5,2126.7,0.01037456]
[1625130376018,5.47640636,2127.3,2126.7,0.01037456]
[1625130376117,3.4882,2127.3,2126.7,0.01037456]
[1625130376220,3.5682,2127.3,2126.7,0.01037456]
[1625130376416,8.99222563,2127.3,2126.7,0.01037456]
[1625130376618,0.1,2127.2,2126.7,0.01037456]
[1625130376821,3.4882,2127.3,2126.7,0.01037456]
[1625130376917,0.15,2127.1,2126.7,0.01037456]
[1625130377018,7.05137,2127.0,2126.7,0.01037456]
[1625130377620,0.00876617,2126.9,2126.7,0.01037456]
[1625130380681,2.11755571,2127.0,2126.7,0.01037456]
[1625130380781,1.18,2127.1,2126.7,0.01037456]
[1625130381284,7.05158,2126.9,2126.7,0.01037456]
[1625130383907,3.52588,2127.2,2126.7,0.01037456]
[1625130384102,0.00728195,2126.8,2126.7,0.01037456]
[1625130385015,8.0,2127.3,2126.7,0.93950922]
[1625130385113,4.32001322,2127.3,2126.7,5.25320922]
[1625130385209,4.32001322,2127.3,2126.8,0.1]
[1625130385312,4.32001322,2127.3,2126.8,2.37616238]
[1625130385415,4.32001322,2127.3,2126.8,2.52616238]
[1625130385509,4.32001322,2127.3,2127.0,5.01]
[1625130385607,4.32001322,2127.3,2127.1,5.01]
[1625130385807,4.32001322,2127.3,2127.2,31.31]
[1625130385808,2.71553436,2127.3,2127.2,31.31]
[1625130385912,0.00925005,2127.7,2127.3,26.85]
[1625130386011,0.00925005,2127.7,2127.3,25.85]
[1625130386111,0.00925005,2127.7,2127.3,26.00010169]
[1625130386208,0.00925005,2127.7,2127.3,25.85]
[1625130386308,0.00925005,2127.7,2127.5,5.01]
[1625130386408,0.00925005,2127.7,2127.5,5.95063011]
[1625130386708,0.00925005,2127.7,2127.6,24.88]
[1625130386810,0.00925005,2127.7,2127.6,25.39104552]
[1625130387863,0.00925005,2127.7,2127.6,0.59104552]
[1625130387966,0.00925005,2127.7,2127.6,5.09]
[1625130388371,0.00925005,2127.7,2127.6,5.01]
[1625130388469,0.00925005,2127.7,2127.6,12.06]
[1625130388570,0.00925005,2127.7,2127.6,5.01]
[1625130389708,0.00925005,2127.7,2127.5,8.49779563]
[1625130389807,0.00925005,2127.7,2127.5,7.98675011]
[1625130389911,0.00925005,2127.7,2127.6,22.02]
[1625130390208,0.00925005,2127.7,2127.6,26.99493795]
[1625130390707,0.00925005,2127.7,2127.6,22.02]
[1625130390807,0.00925005,2127.7,2127.6,5.07]
[1625130390911,0.00820809,2128.2,2127.7,17.95]
[1625130391007,0.00820809,2128.2,2127.8,0.1]
[1625130391208,0.00820809,2128.2,2127.7,4.99531633]
[1625130391446,0.00820809,2128.2,2127.6,0.00809036]
[1625130391747,7.05542809,2128.2,2127.6,0.00809036]
[1625130392351,0.00820809,2128.2,2127.6,0.00809036]
[1625130392848,3.52336,2128.6,2127.6,0.00809036]
[1625130393799,3.52336,2128.6,2127.7,0.00820809]
[1625130394200,7.0466,2128.4,2127.7,5.01820809]
[1625130394300,7.0466,2128.4,2127.7,10.05857219]
[1625130394399,7.0466,2128.4,2127.8,5.01]
[1625130394702,7.0466,2128.4,2127.9,5.0113879]
[1625130394800,7.0466,2128.4,2127.8,5.01]
[1625130394901,7.0466,2128.4,2127.8,4.96]
[1625130395603,3.52336,2128.6,2127.8,4.96]
[1625130395702,10.56954,2128.6,2127.8,4.96]
[1625130395804,10.56954,2128.6,2127.9,5.02322069]
[1625130395951,10.56954,2128.6,2127.8,4.96]
[1625130396353,3.52336,2128.6,2127.8,4.96]
[1625130396454,3.52336,2128.6,2127.8,9.99619185]
[1625130396555,3.52336,2128.6,2127.8,4.96]
[1625130396653,3.52336,2128.6,2127.8,9.96740626]
[1625130396753,3.52336,2128.6,2127.8,4.96]
[1625130397256,7.04633,2128.5,2127.8,4.96]
[1625130397656,7.04633,2128.5,2127.7,0.01628664]
[1625130398061,5.02477193,2128.3,2127.7,0.00821664]
[1625130398243,7.04768,2128.1,2127.7,0.00821664]
[1625130398333,11.00848,2128.1,2127.7,0.00821664]
[1625130398429,5.44837107,2128.0,2127.7,0.00821664]
[1625130398530,33.31,2127.8,2127.7,0.00821664]
[1625130398728,33.46,2127.8,2127.7,0.00821664]
[1625130398831,33.46,2127.8,2127.7,1.664e-05]
[1625130398932,41.46,2127.8,2127.7,1.664e-05]
[1625130399031,41.58,2127.8,2127.7,1.664e-05]
[1625130399529,56.58,2127.8,2127.7,1.664e-05]
[1625130400453,41.58,2127.8,2127.7,1.664e-05]
[1625130400551,56.58,2127.8,2127.7,1.664e-05]
[1625130401253,58.58,2127.8,2127.7,1.664e-05]
[1625130401553,68.58,2127.8,2127.7,1.664e-05]
[1625130402057,58.58,2127.8,2127.7,1.664e-05]
[1625130402557,68.58,2127.8,2127.7,1.664e-05]
[1625130403119,58.58,2127.8,2127.7,1.664e-05]
[1625130403218,43.58,2127.8,2127.7,1.664e-05]
[1625130403481,58.58,2127.8,2127.7,1.664e-05]
[1625130403677,68.58,2127.8,2127.7,1.664e-05]
[1625130404079,60.58,2127.8,2127.7,1.664e-05]
[1625130404179,35.58,2127.8,2127.7,1.664e-05]
[1625130404476,50.58,2127.8,2127.7,1.664e-05]
[1625130404778,68.58,2127.8,2127.7,1.664e-05]
[1625130405168,68.58734706,2127.8,2127.7,1.664e-05]
[1625130405256,43.58734706,2127.8,2127.7,1.664e-05]
[1625130406964,30.57734706,2127.8,2127.7,1.664e-05]
[1625130407066,28.57734706,2127.8,2127.7,1.664e-05]
[1625130407704,43.57734706,2127.8,2127.7,1.664e-05]
[1625130408203,51.57734706,2127.8,2127.7,1.664e-05]
[1625130409056,28.57734706,2127.8,2127.7,1.664e-05]
[1625130409160,28.45734706,2127.8,2127.7,1.664e-05]
[1625130409461,0.15734706,2127.8,2127.7,1.664e-05]
[1625130409879,0.00734706,2127.8,2127.7,1.664e-05]
[1625130412208,7.86816,2127.9,2127.7,1.664e-05]
[1625130412308,7.86816,2127.9,2127.0,5.26601794]
[1625130412417,7.04832,2127.7,2127.0,5.26601794]
[1625130412508,7.04832,2127.7,2127.0,0.10926669]
[1625130412610,7.05757005,2127.7,2127.1,5.09]
[1625130412808,7.05757005,2127.7,2127.1,5.01]
[1625130413607,7.05757005,2127.7,2127.2,5.01]
[1625130413911,7.05757005,2127.7,2127.1,5.01]
[1625130414358,7.05757005,2127.7,2127.1,7.36115065]
[1625130415461,7.05757005,2127.7,2127.2,0.00667443]
[1625130418116,7.07254998,2127.7,2127.2,0.00667443]
[1625130418219,7.04895,2127.5,2127.2,0.00667443]
[1625130419718,3.52539,2127.5,2127.2,0.00667443]
[1625130419820,7.05077,2127.4,2127.2,0.00667443]
[1625130420119,7.11077,2127.4,2127.2,0.00667443]
[1625130420421,22.11077,2127.4,2127.2,0.00667443]
[1625130420838,7.11077,2127.4,2127.2,0.00667443]
[1625130421020,7.05077,2127.4,2127.2,0.00667443]
[1625130421722,3.52483,2127.5,2127.2,0.00667443]
[1625130421923,0.00925005,2127.7,2127.2,0.00667443]
[1625130422128,0.00925005,2127.7,2127.2,5.2713322]
[1625130422325,0.00925005,2127.7,2127.4,5.01]
[1625130422425,0.00925005,2127.7,2127.5,5.55615034]
[1625130422533,0.00925005,2127.7,2127.6,2.5]
[1625130422639,5e-08,2127.7,2127.6,2.5]
[1625130422732,5e-08,2127.7,2127.6,13.82829131]
[1625130422827,0.00820809,2128.2,2128.1,0.29509177]
[1625130422931,0.00820809,2128.2,2128.1,31.23214634]
[1625130423073,0.00820809,2128.2,2128.1,31.38214634]
[1625130423267,0.00820809,2128.2,2128.1,31.46214634]
[1625130423368,0.00820809,2128.2,2128.1,36.54728979]
[1625130423469,0.00820809,2128.2,2128.1,44.54728979]
[1625130423666,0.00820809,2128.2,2128.1,13.69728979]
[1625130423870,0.00820809,2128.2,2128.1,20.74145979]
[1625130424465,0.00820809,2128.2,2128.1,20.44636802]
[1625130424666,0.00820809,2128.2,2128.1,18.28816802]
[1625130425739,0.00820809,2128.2,2128.1,18.7991668]
[1625130426240,0.00820809,2128.2,2128.1,16.29526615]
[1625130426439,0.00820809,2128.2,2128.1,12.76256878]
[1625130426539,0.00820809,2128.2,2128.1,12.61256878]
[1625130426738,0.00820809,2128.2,2128.1,12.10157]
[1625130427440,0.00724876,2128.7,2128.1,5.0574]
[1625130427576,0.00724876,2128.7,2128.1,10.00485958]
[1625130427674,0.00724876,2128.7,2128.2,0.14]
[1625130427774,0.00724876,2128.7,2128.1,4.94745958]
[1625130428374,0.00724876,2128.7,2128.0,14.40222]
[1625130428474,0.00724876,2128.7,2128.2,5.01]
[1625130428577,0.00724876,2128.7,2128.0,14.40222]
[1625130429128,0.00724876,2128.7,2128.1,4.98018278]
[1625130429328,0.00724876,2128.7,2128.2,0.08]
[1625130429960,0.00724876,2128.7,2128.1,3.16489943]
[1625130430059,0.00724876,2128.7,2128.1,0.66099878]
[1625130430163,0.00724876,2128.7,2128.1,0.51099878]
[1625130430358,0.00724876,2128.7,2128.1,12.5583045]
[1625130430460,0.00724876,2128.7,2128.2,5.01]
[1625130430560,0.00724876,2128.7,2128.2,0.1]
[1625130430660,0.00724876,2128.7,2128.3,5.01]
[1625130430865,0.00724876,2128.7,2128.2,5.11]
[1625130431060,0.00724876,2128.7,2128.3,5.01]
[1625130431260,0.00724876,2128.7,2128.4,0.04]
[1625130431563,7.04445,2129.2,2128.4,0.04]
[1625130431761,7.04445,2129.2,2128.4,5.05]
[1625130431861,7.04445,2129.2,2128.4,5.01]
[1625130431959,7.04445,2129.2,2128.5,5.01]
[1625130432076,7.04445,2129.2,2128.4,5.01]
[1625130432165,7.04445,2129.2,2128.3,5.515604]
[1625130432265,22.04445,2129.2,2128.3,5.515604]
[1625130432365,7.04445,2129.2,2128.3,5.515604]
[1625130432465,7.04445,2129.2,2128.7,0.00637101]
[1625130432669,22.04445,2129.2,2128.7,0.00637101]
[1625130432768,7.04445,2129.2,2128.7,0.00637101]
[1625130433734,22.04445,2129.2,2128.7,0.00637101]
[1625130434579,7.04445,2129.2,2128.7,0.00637101]
[1625130435079,15.26538,2129.6,2128.7,0.00637101]
[1625130435780,15.0,2129.5,2128.7,0.00637101]
[1625130436381,14.99151463,2129.5,2128.7,0.00637101]
[1625130436926,7.0449,2129.1,2128.7,0.00637101]
[1625130437022,7.0449,2129.1,2128.7,0.01370206]
[1625130437423,7.0449,2129.1,2128.7,0.00637206]
[1625130437623,7.1949,2129.1,2128.7,0.00637206]
[1625130437725,5.01,2128.9,2128.7,0.00637206]
[1625130437823,9.9602,2128.9,2128.7,0.00637206]
[1625130438973,4.9502,2128.9,2128.7,0.00637206]
[1625130439074,0.15,2129.1,2128.7,0.00637206]
[1625130439174,7.0456,2128.9,2128.7,0.00637206]
[1625130440481,7.0456,2128.9,2128.7,0.01370226]
[1625130442125,5.01,2129.2,2128.7,0.01370226]
[1625130442725,20.01,2129.2,2128.7,0.01370226]
[1625130442832,5.01,2129.0,2128.7,0.01370226]
[1625130443027,0.06,2129.1,2128.7,0.01370226]
[1625130443126,7.04471,2129.2,2128.7,0.01370226]
[1625130443225,7.04471,2129.2,2128.7,3.10150226]
[1625130443372,30.26538,2129.6,2128.7,3.10150226]
[1625130444172,7.0446,2129.2,2128.7,3.10150226]
[1625130445069,22.0446,2129.2,2128.7,3.10150226]
[1625130445171,22.0446,2129.2,2128.7,0.00637226]
[1625130445275,5.01,2129.0,2128.7,0.00637226]
[1625130445376,20.01,2129.0,2128.7,0.00637226]
[1625130445472,0.15,2128.9,2128.7,0.00637226]
[1625130445591,3.5538,2128.9,2128.7,0.00637226]
[1625130445692,32.05,2128.8,2128.7,0.00637226]
[1625130445793,37.06,2128.8,2128.7,0.00637226]
[1625130445891,37.21,2128.8,2128.7,0.00637226]
[1625130445992,20.16,2128.8,2128.7,0.00637226]
[1625130446091,20.28,2128.8,2128.7,0.00637226]
[1625130446591,20.28,2128.8,2128.7,0.00637101]
[1625130446789,28.28,2128.8,2128.7,0.00637101]
[1625130446890,38.1528,2128.8,2128.7,0.00637101]
[1625130446989,30.1528,2128.8,2128.7,0.00637101]
[1625130447090,21.5028,2128.8,2128.7,0.00637101]
[1625130447388,21.3828,2128.8,2128.7,0.00637101]
[1625130447489,20.16,2128.8,2128.7,0.00637101]
[1625130448173,5.16,2128.8,2128.7,0.00637101]
[1625130448843,0.15,2128.8,2128.7,0.00637101]
[1625130448942,7.05315459,2128.9,2128.7,0.00637101]
[1625130450341,31.76,2128.8,2128.7,0.00637101]
[1625130450539,36.0705,2128.8,2128.7,0.00637101]
[1625130451139,36.07754643,2128.8,2128.7,0.00637101]
[1625130451337,36.03754643,2128.8,2128.7,0.00637101]
[1625130452195,9.28754643,2128.8,2128.7,0.00637101]
[1625130452784,5.01704643,2128.8,2128.7,0.00637101]
[1625130453182,12.06361643,2128.8,2128.7,0.00637101]
[1625130454787,19.06361643,2128.8,2128.7,0.00637101]
[1625130454889,14.05361643,2128.8,2128.7,0.00637101]
[1625130454988,7.05361643,2128.8,2128.7,0.00637101]
[1625130456692,17.30361643,2128.8,2128.7,0.00637101]
[1625130457044,17.36361643,2128.8,2128.7,0.00637101]
[1625130457142,7.11361643,2128.8,2128.7,0.00637101]
[1625130457243,7.05361643,2128.8,2128.7,0.00637101]
[1625130457349,7.00361643,2128.8,2128.7,0.00637101]
[1625130458698,19.20361643,2128.8,2128.7,0.00637101]
[1625130459233,19.35361643,2128.8,2128.7,0.00637101]
[1625130459433,19.43361643,2128.8,2128.7,0.00637101]
[1625130459633,19.36063981,2128.8,2128.7,0.00637101]
[1625130460135,7.16063981,2128.8,2128.7,0.00637101]
[1625130460689,17.56063981,2128.8,2128.7,0.00637101]
[1625130461535,7.16063981,2128.8,2128.7,0.00637101]
[1625130461739,7.01063981,2128.8,2128.7,0.00637101]
[1625130462839,0.00702338,2128.8,2128.7,0.00637101]
[1625130462942,0.00702338,2128.8,2128.7,4.67117101]
[1625130463139,0.00702338,2128.8,2128.7,9.92740471]
[1625130463441,0.00702338,2128.8,2128.7,4.83117101]
[1625130463670,3.52173,2129.5,2128.7,4.83117101]
[1625130463871,3.52173,2129.5,2128.7,9.81245823]
[1625130464173,3.52173,2129.5,2128.7,9.65245823]
[1625130464356,7.04346,2129.1,2128.7,4.67117101]
[1625130465692,3.52252,2129.0,2128.7,0.00637101]
[1625130466635,15.0,2128.9,2128.7,0.00637101]
[1625130466733,28.38,2128.8,2128.7,0.00637101]
[1625130466832,31.5347,2128.8,2128.7,0.00637101]
[1625130467030,31.6847,2128.8,2128.7,0.00637101]
[1625130467429,46.6847,2128.8,2128.7,0.00637101]
[1625130467531,56.6847,2128.8,2128.7,0.00637101]
[1625130467830,61.6947,2128.8,2128.7,0.00637101]
[1625130467930,51.6947,2128.8,2128.7,0.00637101]
[1625130468432,58.74136,2128.8,2128.7,1.01e-06]
[1625130469339,10.43136,2128.8,2128.7,1.01e-06]
[1625130469441,7.27666,2128.8,2128.7,1.01e-06]
[1625130469544,7.04666,2128.8,2128.7,1.01e-06]
[1625130469943,10.268,2129.2,2128.7,1.01e-06]
[1625130470041,10.6949,2129.8,2128.7,3.26230101]
[1625130470138,9.95582424,2129.7,2128.7,3.26230101]
[1625130470641,9.39214,2129.2,2128.7,3.26230101]
[1625130471686,24.39214,2129.2,2128.7,3.26230101]
[1625130471793,27.91485,2129.2,2128.7,1.01e-06]
[1625130471987,12.91485,2129.2,2128.7,1.01e-06]
[1625130472386,3.52271,2129.2,2128.7,1.01e-06]
[1625130473194,7.04569,2129.0,2128.7,1.01e-06]
[1625130476234,20.8637,2129.9,2128.7,1.01e-06]
[1625130476436,10.0,2129.6,2128.7,1.01e-06]
[1625130476534,10.0,2129.6,2128.8,0.16]
[1625130476637,26.70773424,2129.7,2128.7,1.01e-06]
[1625130477235,7.04399,2129.1,2128.7,1.01e-06]
[1625130479240,9.3917,2129.4,2128.7,1.01e-06]
[1625130479345,9.3917,2129.4,2128.7,4.61640101]
[1625130479544,9.3917,2129.4,2128.8,0.06]
[1625130479644,7.04383,2129.2,2128.8,0.06]
[1625130479746,25.0,2129.5,2128.7,5.01000101]
[1625130479943,25.0,2129.5,2128.7,1.01e-06]
[1625130480484,15.0,2129.5,2128.7,1.01e-06]
[1625130481190,7.04428,2129.1,2128.7,1.01e-06]
[1625130481941,25.25278,2129.1,2128.7,1.01e-06]
[1625130482038,0.15,2129.0,2128.7,1.01e-06]
[1625130483179,7.04538,2128.9,2128.7,1.01e-06]
[1625130483684,0.15,2129.0,2128.7,1.01e-06]
[1625130484087,8.11,2129.4,2128.7,1.01e-06]
[1625130484185,3.1,2129.4,2128.7,4.34830101]
[1625130484284,0.15,2129.6,2128.7,4.34830101]
[1625130484389,7.0439,2129.2,2128.7,9.40083059]
[1625130484486,7.0439,2129.2,2128.7,9.40547437]
[1625130484700,7.0439,2129.2,2128.8,0.08]
[1625130485200,7.0439,2129.2,2128.7,4.34830101]
[1625130486004,7.0439,2129.2,2128.7,9.27776407]
[1625130486205,7.0439,2129.2,2128.7,4.34830101]
[1625130487996,7.0439,2129.2,2128.7,9.30027814]
[1625130488097,7.0439,2129.2,2128.7,4.34830101]